[Event "Titled Tuesday Blitz March 08 Early 2022"]
[White "Seo, Jung Min"]
[Black "Fedoseev, Vladimir"]
[WhiteFideId "1734687"]
[BlackFideId "24130737"]
[WhiteElo "2401"]
[BlackElo "2726"]
[Result "0-1"]
[Round "05"]
[TimeControl "180+1"]
[Date "2022.03.08"]
[WhiteClock "0:02:09"]
[BlackClock "0:01:36"]

1. e4 {[%clk 0:03:00]}  c5 {[%clk 0:03:00]} 2. Nf3 {[%clk 0:03:00]}  d6 {[%clk 0:02:59]} 3. d4 {[%clk 0:03:01]}  cxd4 {[%clk 0:03:00]} 4. Nxd4 {[%clk 0:03:01]}  Nf6 {[%clk 0:03:00]} 5. Nc3 {[%clk 0:03:02]}  a6 {[%clk 0:03:00]} 6. Be2 {[%clk 0:03:01]}  e5 {[%clk 0:02:58]} 7. Nb3 {[%clk 0:03:01]}  Be7 {[%clk 0:02:58]} 8. O-O {[%clk 0:02:58]}  O-O {[%clk 0:02:58]} 9. f4 {[%clk 0:02:57]}  Nc6 {[%clk 0:02:51]} 10. Bf3 {[%clk 0:02:54]}  a5 {[%clk 0:02:48]} 11. a4 {[%clk 0:02:52]}  Qb6+ {[%clk 0:02:40]} 12. Kh1 {[%clk 0:02:52]}  Nb4 {[%clk 0:02:39]} 13. Nb5 {[%clk 0:02:42]}  Be6 {[%clk 0:02:36]} 14. c3 {[%clk 0:02:41]}  Na6 {[%clk 0:02:31]} 15. Re1 {[%clk 0:02:37]}  Rad8 {[%clk 0:02:06]} 16. Be3 {[%clk 0:02:36]}  Nc5 {[%clk 0:02:07]} 17. Nxc5 {[%clk 0:02:26]}  dxc5 {[%clk 0:02:07]} 18. Qc2 {[%clk 0:02:25]}  exf4 {[%clk 0:02:03]} 19. Bxf4 {[%clk 0:02:25]}  Rd7 {[%clk 0:02:04]} 20. Rad1 {[%clk 0:02:19]}  Rfd8 {[%clk 0:02:04]} 21. h3 {[%clk 0:02:19]}  h6 {[%clk 0:01:53]} 22. b3 {[%clk 0:02:13]}  c4 {[%clk 0:01:49]} 23. Rxd7 {[%clk 0:02:09]}  Rxd7 {[%clk 0:01:47]} 24. bxc4 {[%clk 0:02:09]}  Bxc4 {[%clk 0:01:46]} 25. Be2 {[%clk 0:02:09]}  Qf2 {[%clk 0:01:36]} 0-1


[Site "https://www.chess.com"]

[Event "Titled Tuesday Blitz March 08 Early 2022"]
[White "Shahaliyev, Ismayil"]
[Black "Van Foreest, Jorden"]
[WhiteFideId "13406388"]
[BlackFideId "1039784"]
[WhiteElo "2105"]
[BlackElo "2609"]
[Result "0-1"]
[Round "05"]
[TimeControl "180+1"]
[Date "2022.03.08"]
[WhiteClock "0:00:04"]
[BlackClock "0:00:11"]

1. d4 {[%clk 0:02:53]}  e6 {[%clk 0:03:00]} 2. g3 {[%clk 0:02:51]}  Nf6 {[%clk 0:03:00]} 3. Bg2 {[%clk 0:02:52]}  Bb4+ {[%clk 0:03:00]} 4. c3 {[%clk 0:02:51]}  Ba5 {[%clk 0:03:00]} 5. e4 {[%clk 0:02:52]}  d5 {[%clk 0:02:59]} 6. e5 {[%clk 0:02:52]}  Nfd7 {[%clk 0:02:58]} 7. Ne2 {[%clk 0:02:50]}  c5 {[%clk 0:02:59]} 8. O-O {[%clk 0:02:49]}  b6 {[%clk 0:02:59]} 9. a3 {[%clk 0:02:46]}  c4 {[%clk 0:02:51]} 10. f4 {[%clk 0:02:43]}  g6 {[%clk 0:02:50]} 11. Nd2 {[%clk 0:02:41]}  Nc6 {[%clk 0:02:48]} 12. f5 {[%clk 0:02:30]}  gxf5 {[%clk 0:02:47]} 13. g4 {[%clk 0:02:30]}  fxg4 {[%clk 0:02:44]} 14. Ng3 {[%clk 0:02:21]}  h5 {[%clk 0:02:42]} 15. Nxc4 {[%clk 0:02:21]}  dxc4 {[%clk 0:02:31]} 16. Bxc6 {[%clk 0:02:22]}  Rb8 {[%clk 0:02:29]} 17. Ne4 {[%clk 0:02:00]}  Kf8 {[%clk 0:01:58]} 18. Bg5 {[%clk 0:01:29]}  Qc7 {[%clk 0:01:54]} 19. Nd6 {[%clk 0:01:25]}  f5 {[%clk 0:01:27]} 20. Nxf5 {[%clk 0:01:04]}  exf5 {[%clk 0:01:27]} 21. Rxf5+ {[%clk 0:01:03]}  Kg7 {[%clk 0:01:28]} 22. d5 {[%clk 0:00:27]}  b5 {[%clk 0:01:19]} 23. e6 {[%clk 0:00:26]}  Bb6+ {[%clk 0:01:12]} 24. Kh1 {[%clk 0:00:24]}  Rf8 {[%clk 0:00:59]} 25. Qc2 {[%clk 0:00:18]}  Bb7 {[%clk 0:00:35]} 26. Bxd7 {[%clk 0:00:14]}  Qc5 {[%clk 0:00:20]} 27. Rd1 {[%clk 0:00:14]}  Bxd5+ {[%clk 0:00:10]} 28. Rfxd5 {[%clk 0:00:04]}  Qxd5+ {[%clk 0:00:09]} 29. Rxd5 {[%clk 0:00:03]}  Rf1+ {[%clk 0:00:10]} 30. Kg2 {[%clk 0:00:04]}  Rg1# {[%clk 0:00:11]} 0-1


[Site "https://www.chess.com"]

[Event "Titled Tuesday Blitz March 08 Early 2022"]
[White "Shkapenko, Pavel"]
[Black "Musovic, Armin"]
[WhiteFideId "4151933"]
[BlackFideId "939935"]
[WhiteElo "2386"]
[BlackElo "2283"]
[Result "1/2-1/2"]
[Round "05"]
[TimeControl "180+1"]
[Date "2022.03.09"]
[WhiteClock "0:00:21"]
[BlackClock "0:00:13"]

1. e4 {[%clk 0:02:49]}  c6 {[%clk 0:02:58]} 2. d4 {[%clk 0:02:49]}  d5 {[%clk 0:02:59]} 3. e5 {[%clk 0:02:49]}  c5 {[%clk 0:02:59]} 4. dxc5 {[%clk 0:02:49]}  e6 {[%clk 0:03:00]} 5. a3 {[%clk 0:02:44]}  Bxc5 {[%clk 0:02:56]} 6. b4 {[%clk 0:02:44]}  Bb6 {[%clk 0:02:56]} 7. Qg4 {[%clk 0:02:44]}  Kf8 {[%clk 0:02:56]} 8. Nf3 {[%clk 0:02:39]}  Nd7 {[%clk 0:02:57]} 9. Bd3 {[%clk 0:02:33]}  Ne7 {[%clk 0:02:52]} 10. O-O {[%clk 0:02:31]}  Ng6 {[%clk 0:02:51]} 11. Qg3 {[%clk 0:02:28]}  Kg8 {[%clk 0:02:48]} 12. Bb2 {[%clk 0:02:27]}  Ndf8 {[%clk 0:02:45]} 13. Nbd2 {[%clk 0:02:26]}  Bd7 {[%clk 0:02:35]} 14. c4 {[%clk 0:02:25]}  Rc8 {[%clk 0:02:31]} 15. c5 {[%clk 0:02:24]}  Bc7 {[%clk 0:02:31]} 16. h4 {[%clk 0:02:24]}  h5 {[%clk 0:02:31]} 17. Rfe1 {[%clk 0:02:20]}  f5 {[%clk 0:02:31]} 18. Qg5 {[%clk 0:02:18]}  Qxg5 {[%clk 0:02:28]} 19. hxg5 {[%clk 0:02:19]}  h4 {[%clk 0:02:19]} 20. Bf1 {[%clk 0:02:19]}  Nf4 {[%clk 0:02:18]} 21. Kh2 {[%clk 0:02:11]}  Rh5 {[%clk 0:02:10]} 22. Nb3 {[%clk 0:02:08]}  Bd8 {[%clk 0:02:09]} 23. Bc1 {[%clk 0:02:03]}  N8g6 {[%clk 0:02:08]} 24. Nbd4 {[%clk 0:02:03]}  Bxg5 {[%clk 0:02:05]} 25. Nxg5 {[%clk 0:02:03]}  Rxg5 {[%clk 0:02:06]} 26. a4 {[%clk 0:01:55]}  Rg4 {[%clk 0:01:46]} 27. f3 {[%clk 0:01:52]}  Rg3 {[%clk 0:01:43]} 28. Be3 {[%clk 0:01:52]}  Nh5 {[%clk 0:01:37]} 29. Nb5 {[%clk 0:01:41]}  h3 {[%clk 0:01:23]} 30. gxh3 {[%clk 0:01:22]}  Nh4 {[%clk 0:01:16]} 31. Nd4 {[%clk 0:01:19]}  Rxf3 {[%clk 0:00:48]} 32. Bg5 {[%clk 0:01:13]}  Rf2+ {[%clk 0:00:31]} 33. Kg1 {[%clk 0:01:13]}  Nf3+ {[%clk 0:00:31]} 34. Kxf2 {[%clk 0:01:11]}  Nxg5 {[%clk 0:00:32]} 35. Bb5 {[%clk 0:01:07]}  Bc6 {[%clk 0:00:28]} 36. Bxc6 {[%clk 0:01:01]}  bxc6 {[%clk 0:00:26]} 37. h4 {[%clk 0:01:01]}  Ne4+ {[%clk 0:00:23]} 38. Kf3 {[%clk 0:01:01]}  Kf7 {[%clk 0:00:20]} 39. Rec1 {[%clk 0:00:54]}  g5 {[%clk 0:00:19]} 40. hxg5 {[%clk 0:00:54]}  Nxg5+ {[%clk 0:00:20]} 41. Ke3 {[%clk 0:00:53]}  f4+ {[%clk 0:00:19]} 42. Kd3 {[%clk 0:00:53]}  Ne4 {[%clk 0:00:20]} 43. Rc2 {[%clk 0:00:47]}  Nhg3 {[%clk 0:00:20]} 44. Rh2 {[%clk 0:00:47]}  a5 {[%clk 0:00:20]} 45. Rh4 {[%clk 0:00:43]}  axb4 {[%clk 0:00:19]} 46. Rxf4+ {[%clk 0:00:43]}  Ke7 {[%clk 0:00:19]} 47. Rc1 {[%clk 0:00:40]}  Nf5 {[%clk 0:00:18]} 48. Nxf5+ {[%clk 0:00:39]}  exf5 {[%clk 0:00:19]} 49. Rxf5 {[%clk 0:00:40]}  Ke6 {[%clk 0:00:20]} 50. Rh5 {[%clk 0:00:40]}  Ra8 {[%clk 0:00:19]} 51. Rh6+ {[%clk 0:00:39]}  Kxe5 {[%clk 0:00:19]} 52. Rxc6 {[%clk 0:00:39]}  Rxa4 {[%clk 0:00:20]} 53. Rb6 {[%clk 0:00:38]}  Ra3+ {[%clk 0:00:20]} 54. Ke2 {[%clk 0:00:38]}  Rc3 {[%clk 0:00:19]} 55. Rb1 {[%clk 0:00:24]}  Rc2+ {[%clk 0:00:17]} 56. Kd3 {[%clk 0:00:21]}  Rc3+ {[%clk 0:00:13]} 57. Ke2 {[%clk 0:00:21]}  Rc2+ {[%clk 0:00:13]} 58. Kd3 {[%clk 0:00:21]}  Rc3+ {[%clk 0:00:13]} 59. Ke2 {[%clk 0:00:21]} 1/2-1/2


[Site "https://www.chess.com"]

[Event "Titled Tuesday Blitz March 08 Early 2022"]
[White "Sinitsina, Anastassia"]
[Black "Sahin, Handenur"]
[WhiteFideId "4504640"]
[BlackFideId "6334865"]
[WhiteElo "2144"]
[BlackElo "2159"]
[Result "1-0"]
[Round "05"]
[TimeControl "180+1"]
[Date "2022.03.09"]
[WhiteClock "0:01:15"]
[BlackClock "0:01:11"]

1. Nf3 {[%clk 0:03:00]}  d5 {[%clk 0:02:59]} 2. g3 {[%clk 0:03:01]}  Bg4 {[%clk 0:02:58]} 3. Bg2 {[%clk 0:03:01]}  Nd7 {[%clk 0:02:56]} 4. d4 {[%clk 0:03:00]}  Ngf6 {[%clk 0:02:56]} 5. O-O {[%clk 0:03:00]}  e6 {[%clk 0:02:56]} 6. Nbd2 {[%clk 0:03:00]}  Bd6 {[%clk 0:02:56]} 7. Re1 {[%clk 0:03:00]}  O-O {[%clk 0:02:55]} 8. e4 {[%clk 0:03:00]}  dxe4 {[%clk 0:02:55]} 9. Nxe4 {[%clk 0:03:01]}  Nxe4 {[%clk 0:02:55]} 10. Rxe4 {[%clk 0:03:02]}  Nf6 {[%clk 0:02:55]} 11. Re1 {[%clk 0:03:01]}  c6 {[%clk 0:02:52]} 12. c3 {[%clk 0:03:01]}  h6 {[%clk 0:02:49]} 13. Qb3 {[%clk 0:03:00]}  Qb6 {[%clk 0:02:48]} 14. Ne5 {[%clk 0:02:53]}  Bf5 {[%clk 0:02:43]} 15. Bf4 {[%clk 0:02:46]}  Rfd8 {[%clk 0:02:38]} 16. h3 {[%clk 0:02:14]}  Nd5 {[%clk 0:02:28]} 17. Bd2 {[%clk 0:02:11]}  Qc7 {[%clk 0:02:20]} 18. Nc4 {[%clk 0:02:05]}  Bf8 {[%clk 0:02:09]} 19. Ne3 {[%clk 0:02:02]}  Bg6 {[%clk 0:02:07]} 20. Nxd5 {[%clk 0:02:01]}  cxd5 {[%clk 0:02:06]} 21. Bf4 {[%clk 0:02:00]}  Bd6 {[%clk 0:02:04]} 22. Bd2 {[%clk 0:01:51]}  a6 {[%clk 0:02:02]} 23. a4 {[%clk 0:01:49]}  Rab8 {[%clk 0:02:01]} 24. Qa2 {[%clk 0:01:43]}  b5 {[%clk 0:01:59]} 25. axb5 {[%clk 0:01:41]}  axb5 {[%clk 0:02:00]} 26. Qa7 {[%clk 0:01:37]}  Rb7 {[%clk 0:01:58]} 27. Qa5 {[%clk 0:01:37]}  Qd7 {[%clk 0:01:44]} 28. Qa2 {[%clk 0:01:26]}  b4 {[%clk 0:01:40]} 29. c4 {[%clk 0:01:25]}  b3 {[%clk 0:01:34]} 30. Qa5 {[%clk 0:01:20]}  Bc7 {[%clk 0:01:27]} 31. Qc3 {[%clk 0:01:17]}  Bb8 {[%clk 0:01:14]} 32. c5 {[%clk 0:01:16]}  Bd3 {[%clk 0:01:11]} 33. Qxd3 {[%clk 0:01:15]} 1-0


[Site "https://www.chess.com"]

[Event "Titled Tuesday Blitz March 08 Early 2022"]
[White "Siva Mahadevan"]
[Black "Fiorito, Fabian"]
[WhiteFideId "25043153"]
[BlackFideId "100200"]
[WhiteElo "2203"]
[BlackElo "2395"]
[Result "1-0"]
[Round "05"]
[TimeControl "180+1"]
[Date "2022.03.09"]
[WhiteClock "0:00:25"]
[BlackClock "0:00:16"]

1. e4 {[%clk 0:03:00]}  c6 {[%clk 0:03:00]} 2. d4 {[%clk 0:03:00]}  d5 {[%clk 0:03:00]} 3. e5 {[%clk 0:03:00]}  Bf5 {[%clk 0:03:00]} 4. c4 {[%clk 0:03:01]}  dxc4 {[%clk 0:02:56]} 5. Nc3 {[%clk 0:03:02]}  e6 {[%clk 0:02:56]} 6. Bxc4 {[%clk 0:03:02]}  Nd7 {[%clk 0:02:55]} 7. Nge2 {[%clk 0:03:01]}  Nb6 {[%clk 0:02:54]} 8. Bb3 {[%clk 0:03:02]}  Ne7 {[%clk 0:02:49]} 9. Ng3 {[%clk 0:03:02]}  Bg6 {[%clk 0:02:48]} 10. O-O {[%clk 0:03:03]}  Nf5 {[%clk 0:02:46]} 11. Nxf5 {[%clk 0:03:02]}  Bxf5 {[%clk 0:02:46]} 12. Be3 {[%clk 0:03:03]}  Be7 {[%clk 0:02:44]} 13. Rc1 {[%clk 0:03:03]}  O-O {[%clk 0:02:27]} 14. g4 {[%clk 0:03:03]}  Bg6 {[%clk 0:02:27]} 15. f4 {[%clk 0:03:03]}  h6 {[%clk 0:01:48]} 16. f5 {[%clk 0:03:01]}  exf5 {[%clk 0:01:42]} 17. gxf5 {[%clk 0:03:02]}  Bg5 {[%clk 0:01:39]} 18. Qd2 {[%clk 0:03:00]}  Bh7 {[%clk 0:01:34]} 19. Kh1 {[%clk 0:02:43]}  Kh8 {[%clk 0:01:32]} 20. Rf3 {[%clk 0:02:06]}  c5 {[%clk 0:01:23]} 21. d5 {[%clk 0:02:00]}  c4 {[%clk 0:01:23]} 22. Bc2 {[%clk 0:02:00]}  Bxe3 {[%clk 0:01:13]} 23. Qxe3 {[%clk 0:02:00]}  Nxd5 {[%clk 0:01:12]} 24. Qe4 {[%clk 0:01:23]}  Nxc3 {[%clk 0:01:10]} 25. bxc3 {[%clk 0:01:24]}  Re8 {[%clk 0:01:03]} 26. Rg1 {[%clk 0:01:19]}  Qc7 {[%clk 0:01:00]} 27. Rxg7 {[%clk 0:01:11]}  Rxe5 {[%clk 0:00:56]} 28. Rxf7 {[%clk 0:00:48]}  Rxe4 {[%clk 0:00:53]} 29. Rxc7 {[%clk 0:00:48]}  Re1+ {[%clk 0:00:53]} 30. Kg2 {[%clk 0:00:49]}  Re2+ {[%clk 0:00:52]} 31. Rf2 {[%clk 0:00:49]}  Rg8+ {[%clk 0:00:46]} 32. Kf1 {[%clk 0:00:43]}  Rxf2+ {[%clk 0:00:46]} 33. Kxf2 {[%clk 0:00:44]}  Rf8 {[%clk 0:00:47]} 34. Rc5 {[%clk 0:00:39]}  b6 {[%clk 0:00:46]} 35. Re5 {[%clk 0:00:40]}  Kg7 {[%clk 0:00:46]} 36. Ke3 {[%clk 0:00:40]}  Kf6 {[%clk 0:00:44]} 37. Kf4 {[%clk 0:00:40]}  Bg8 {[%clk 0:00:42]} 38. Re2 {[%clk 0:00:32]}  Rd8 {[%clk 0:00:43]} 39. Be4 {[%clk 0:00:30]}  Bf7 {[%clk 0:00:40]} 40. a4 {[%clk 0:00:29]}  Rd1 {[%clk 0:00:37]} 41. a5 {[%clk 0:00:28]}  b5 {[%clk 0:00:32]} 42. a6 {[%clk 0:00:27]}  Ra1 {[%clk 0:00:32]} 43. Rb2 {[%clk 0:00:26]}  Rxa6 {[%clk 0:00:29]} 44. Rxb5 {[%clk 0:00:26]}  Ra3 {[%clk 0:00:30]} 45. Rb7 {[%clk 0:00:24]}  Rxc3 {[%clk 0:00:28]} 46. Rxa7 {[%clk 0:00:24]}  Rh3 {[%clk 0:00:21]} 47. Ra6+ {[%clk 0:00:24]}  Ke7 {[%clk 0:00:20]} 48. f6+ {[%clk 0:00:25]}  Kd8 {[%clk 0:00:20]} 49. Ra8+ {[%clk 0:00:24]}  Kd7 {[%clk 0:00:19]} 50. Bf5+ {[%clk 0:00:24]}  Kc7 {[%clk 0:00:15]} 51. Bxh3 {[%clk 0:00:25]}  c3 {[%clk 0:00:16]} 52. Rc8+ {[%clk 0:00:25]} 1-0


[Site "https://www.chess.com"]

[Event "Titled Tuesday Blitz March 08 Early 2022"]
[White "Soderstrom, Adrian"]
[Black "Dronavalli, Harika"]
[WhiteFideId "1745786"]
[BlackFideId "5015197"]
[WhiteElo "2107"]
[BlackElo "2382"]
[Result "0-1"]
[Round "05"]
[TimeControl "180+1"]
[Date "2022.03.09"]
[WhiteClock "0:00:01"]
[BlackClock "0:00:25"]

1. d4 {[%clk 0:03:00]}  Nf6 {[%clk 0:02:59]} 2. c4 {[%clk 0:03:00]}  e6 {[%clk 0:02:59]} 3. Nf3 {[%clk 0:02:59]}  d5 {[%clk 0:03:00]} 4. Nc3 {[%clk 0:02:59]}  dxc4 {[%clk 0:03:00]} 5. e4 {[%clk 0:02:59]}  Bb4 {[%clk 0:02:58]} 6. Bxc4 {[%clk 0:02:59]}  Nxe4 {[%clk 0:02:55]} 7. O-O {[%clk 0:02:59]}  Nf6 {[%clk 0:02:43]} 8. Bg5 {[%clk 0:02:47]}  O-O {[%clk 0:02:40]} 9. Qe2 {[%clk 0:02:36]}  h6 {[%clk 0:02:39]} 10. Bh4 {[%clk 0:02:36]}  Be7 {[%clk 0:02:39]} 11. Rad1 {[%clk 0:02:34]}  Nbd7 {[%clk 0:02:39]} 12. Rfe1 {[%clk 0:02:27]}  Nb6 {[%clk 0:02:33]} 13. Bb3 {[%clk 0:02:25]}  Nfd5 {[%clk 0:02:26]} 14. Bxe7 {[%clk 0:02:22]}  Nxe7 {[%clk 0:02:25]} 15. Ne5 {[%clk 0:02:20]}  Nbd5 {[%clk 0:02:04]} 16. Bc2 {[%clk 0:02:14]}  f6 {[%clk 0:01:57]} 17. Ng4 {[%clk 0:02:07]}  Qe8 {[%clk 0:01:39]} 18. Nxd5 {[%clk 0:01:04]}  Nxd5 {[%clk 0:01:38]} 19. Rd3 {[%clk 0:01:04]}  f5 {[%clk 0:01:18]} 20. Nxh6+ {[%clk 0:00:42]}  gxh6 {[%clk 0:01:18]} 21. Rg3+ {[%clk 0:00:42]}  Kh7 {[%clk 0:01:01]} 22. Qe5 {[%clk 0:00:39]}  Qf7 {[%clk 0:00:57]} 23. Bb3 {[%clk 0:00:07]}  c6 {[%clk 0:00:56]} 24. Qe2 {[%clk 0:00:05]}  Bd7 {[%clk 0:00:52]} 25. Qf3 {[%clk 0:00:05]}  Rg8 {[%clk 0:00:49]} 26. Rh3 {[%clk 0:00:05]}  Rg6 {[%clk 0:00:47]} 27. Bc2 {[%clk 0:00:05]}  Rag8 {[%clk 0:00:47]} 28. g3 {[%clk 0:00:03]}  Qf6 {[%clk 0:00:45]} 29. Kh1 {[%clk 0:00:02]}  Qxd4 {[%clk 0:00:39]} 30. Rd1 {[%clk 0:00:02]}  Qg4 {[%clk 0:00:39]} 31. Qg2 {[%clk 0:00:02]}  R8g7 {[%clk 0:00:35]} 32. f3 {[%clk 0:00:03]}  Qg5 {[%clk 0:00:35]} 33. Re1 {[%clk 0:00:03]}  Nf4 {[%clk 0:00:34]} 34. Qf1 {[%clk 0:00:02]}  Nxh3 {[%clk 0:00:34]} 35. Qxh3 {[%clk 0:00:02]}  Qf6 {[%clk 0:00:29]} 36. Re2 {[%clk 0:00:02]}  c5 {[%clk 0:00:28]} 37. f4 {[%clk 0:00:03]}  Bc6+ {[%clk 0:00:28]} 38. Kg1 {[%clk 0:00:03]}  Qf8 {[%clk 0:00:27]} 39. Qf1 {[%clk 0:00:03]}  c4 {[%clk 0:00:27]} 40. Rf2 {[%clk 0:00:03]}  Qc5 {[%clk 0:00:27]} 41. Qe1 {[%clk 0:00:04]}  Rd7 {[%clk 0:00:27]} 42. Qc3 {[%clk 0:00:04]}  b5 {[%clk 0:00:26]} 43. a3 {[%clk 0:00:04]}  Qd4 {[%clk 0:00:26]} 44. Qb4 {[%clk 0:00:04]}  Rdg7 {[%clk 0:00:26]} 45. Qe1 {[%clk 0:00:02]}  Be4 {[%clk 0:00:25]} 46. Kf1 {[%clk 0:00:02]}  Bd3+ {[%clk 0:00:24]} 47. Bxd3 {[%clk 0:00:02]}  cxd3 {[%clk 0:00:25]} 48. Rd2 {[%clk 0:00:02]}  Rd7 {[%clk 0:00:25]} 49. h3 {[%clk 0:00:02]}  Qd5 {[%clk 0:00:25]} 50. Kf2 {[%clk 0:00:02]}  Qd4+ {[%clk 0:00:24]} 51. Kf3 {[%clk 0:00:02]}  Rdg7 {[%clk 0:00:24]} 52. Rg2 {[%clk 0:00:01]}  Qd5+ {[%clk 0:00:24]} 53. Kf2 {[%clk 0:00:01]}  d2 {[%clk 0:00:25]} 0-1


[Site "https://www.chess.com"]

[Event "Titled Tuesday Blitz March 08 Early 2022"]
[White "Sychev, Klementy"]
[Black "Horak, Martin"]
[WhiteFideId "4114060"]
[BlackFideId "367095"]
[WhiteElo "2564"]
[BlackElo "1997"]
[Result "1-0"]
[Round "05"]
[TimeControl "180+1"]
[Date "2022.03.09"]
[WhiteClock "0:00:42"]
[BlackClock "0:00:04"]

1. e4 {[%clk 0:03:00]}  e5 {[%clk 0:02:59]} 2. Nf3 {[%clk 0:02:59]}  Nc6 {[%clk 0:02:58]} 3. d4 {[%clk 0:03:00]}  exd4 {[%clk 0:02:58]} 4. Nxd4 {[%clk 0:03:01]}  Nf6 {[%clk 0:02:44]} 5. Nxc6 {[%clk 0:02:58]}  bxc6 {[%clk 0:02:43]} 6. e5 {[%clk 0:02:59]}  Qe7 {[%clk 0:02:42]} 7. Qe2 {[%clk 0:02:57]}  Nd5 {[%clk 0:02:41]} 8. g3 {[%clk 0:02:54]}  g6 {[%clk 0:02:33]} 9. c4 {[%clk 0:02:49]}  Nb6 {[%clk 0:02:32]} 10. Bg2 {[%clk 0:02:45]}  Bg7 {[%clk 0:02:31]} 11. O-O {[%clk 0:02:42]}  O-O {[%clk 0:02:31]} 12. Re1 {[%clk 0:02:40]}  Re8 {[%clk 0:02:05]} 13. f4 {[%clk 0:02:35]}  Qc5+ {[%clk 0:01:54]} 14. Be3 {[%clk 0:02:31]}  Qxc4 {[%clk 0:01:51]} 15. Qf2 {[%clk 0:02:29]}  Rb8 {[%clk 0:01:41]} 16. Nd2 {[%clk 0:02:21]}  Qe6 {[%clk 0:01:38]} 17. Ne4 {[%clk 0:02:13]}  d5 {[%clk 0:01:19]} 18. exd6 {[%clk 0:01:37]}  cxd6 {[%clk 0:01:18]} 19. Bd4 {[%clk 0:01:35]}  Bb7 {[%clk 0:00:27]} 20. Nf6+ {[%clk 0:00:53]}  Qxf6 {[%clk 0:00:25]} 21. Bxf6 {[%clk 0:00:51]}  Bxf6 {[%clk 0:00:25]} 22. Kh1 {[%clk 0:00:49]}  Nd5 {[%clk 0:00:05]} 23. Rxe8+ {[%clk 0:00:46]}  Rxe8 {[%clk 0:00:06]} 24. Re1 {[%clk 0:00:44]}  Rxe1+ {[%clk 0:00:05]} 25. Qxe1 {[%clk 0:00:44]}  Bxb2 {[%clk 0:00:04]} 26. Qe8+ {[%clk 0:00:42]}  Kg7 {[%clk 0:00:04]} 27. Qb8 {[%clk 0:00:42]} 1-0


[Site "https://www.chess.com"]

[Event "Titled Tuesday Blitz March 08 Early 2022"]
[White "Tabatabaei, M. Amin"]
[Black "Volkov, Maksim"]
[WhiteFideId "12521213"]
[BlackFideId "54123070"]
[WhiteElo "2933"]
[BlackElo "2582"]
[Result "1-0"]
[Round "05"]
[TimeControl "180+1"]
[Date "2022.03.08"]
[WhiteClock "0:00:20"]
[BlackClock "0:00:03"]

1. d4 {[%clk 0:03:00]}  d5 {[%clk 0:02:59]} 2. Nf3 {[%clk 0:02:58]}  Nf6 {[%clk 0:02:58]} 3. c3 {[%clk 0:02:58]}  c5 {[%clk 0:02:57]} 4. dxc5 {[%clk 0:02:58]}  e6 {[%clk 0:02:53]} 5. Be3 {[%clk 0:02:58]}  a5 {[%clk 0:02:48]} 6. c4 {[%clk 0:02:51]}  Na6 {[%clk 0:02:42]} 7. cxd5 {[%clk 0:02:47]}  Nxd5 {[%clk 0:02:41]} 8. Bd4 {[%clk 0:02:48]}  Nxc5 {[%clk 0:02:40]} 9. e3 {[%clk 0:02:44]}  Bd7 {[%clk 0:02:33]} 10. Bc4 {[%clk 0:02:39]}  Nb6 {[%clk 0:02:15]} 11. Be2 {[%clk 0:02:37]}  Bc6 {[%clk 0:01:58]} 12. O-O {[%clk 0:02:36]}  Qc7 {[%clk 0:01:41]} 13. Ne5 {[%clk 0:02:31]}  Rd8 {[%clk 0:01:36]} 14. Nc3 {[%clk 0:02:29]}  Bd6 {[%clk 0:01:16]} 15. Nb5 {[%clk 0:02:19]}  Bxb5 {[%clk 0:01:11]} 16. Bxb5+ {[%clk 0:02:20]}  Nbd7 {[%clk 0:01:07]} 17. Rc1 {[%clk 0:02:17]}  Bxe5 {[%clk 0:00:59]} 18. Bxc5 {[%clk 0:02:04]}  f6 {[%clk 0:00:43]} 19. Be7 {[%clk 0:01:22]}  Qxc1 {[%clk 0:00:26]} 20. Qxc1 {[%clk 0:01:19]}  Kxe7 {[%clk 0:00:26]} 21. Rd1 {[%clk 0:01:17]}  Nb8 {[%clk 0:00:25]} 22. g3 {[%clk 0:01:10]}  Rxd1+ {[%clk 0:00:24]} 23. Qxd1 {[%clk 0:01:11]}  Rd8 {[%clk 0:00:25]} 24. Qh5 {[%clk 0:01:08]}  h6 {[%clk 0:00:24]} 25. Qg4 {[%clk 0:01:08]}  Kf7 {[%clk 0:00:23]} 26. Bc4 {[%clk 0:01:06]}  Rd6 {[%clk 0:00:22]} 27. f4 {[%clk 0:01:06]}  Bxb2 {[%clk 0:00:21]} 28. f5 {[%clk 0:01:06]}  Nc6 {[%clk 0:00:18]} 29. fxe6+ {[%clk 0:01:03]}  Kf8 {[%clk 0:00:18]} 30. Bb3 {[%clk 0:00:46]}  Ba3 {[%clk 0:00:15]} 31. Qg6 {[%clk 0:00:37]}  Ne5 {[%clk 0:00:14]} 32. Qh7 {[%clk 0:00:37]}  Rd2 {[%clk 0:00:06]} 33. Qh8+ {[%clk 0:00:37]}  Ke7 {[%clk 0:00:05]} 34. Qxg7+ {[%clk 0:00:37]}  Kd6 {[%clk 0:00:06]} 35. Qxf6 {[%clk 0:00:32]}  Bb2 {[%clk 0:00:04]} 36. e7+ {[%clk 0:00:31]}  Kd7 {[%clk 0:00:02]} 37. Qe6+ {[%clk 0:00:20]}  Ke8 {[%clk 0:00:01]} 38. Ba4+ {[%clk 0:00:21]}  Nc6 {[%clk 0:00:01]} 39. Bxc6+ {[%clk 0:00:19]}  bxc6 {[%clk 0:00:02]} 40. Qxc6+ {[%clk 0:00:20]}  Kxe7 {[%clk 0:00:02]} 41. Qxh6 {[%clk 0:00:20]}  Rd1+ {[%clk 0:00:01]} 42. Kg2 {[%clk 0:00:20]}  Rd2+ {[%clk 0:00:02]} 43. Kh3 {[%clk 0:00:21]}  Bf6 {[%clk 0:00:03]} 44. Qh7+ {[%clk 0:00:21]}  Ke6 {[%clk 0:00:04]} 45. Qe4+ {[%clk 0:00:21]}  Kf7 {[%clk 0:00:04]} 46. Qb7+ {[%clk 0:00:20]}  Kg6 {[%clk 0:00:04]} 47. Qe4+ {[%clk 0:00:20]}  Kg7 {[%clk 0:00:04]} 48. a4 {[%clk 0:00:21]}  Rb2 {[%clk 0:00:04]} 49. Qf5 {[%clk 0:00:20]}  Rb4 {[%clk 0:00:03]} 50. Qxa5 {[%clk 0:00:20]}  Rb2 {[%clk 0:00:03]} 51. Qa7+ {[%clk 0:00:20]}  Kg6 {[%clk 0:00:04]} 52. a5 {[%clk 0:00:21]}  Ra2 {[%clk 0:00:04]} 53. Qa8 {[%clk 0:00:21]}  Ra3 {[%clk 0:00:04]} 54. Qe4+ {[%clk 0:00:20]}  Kf7 {[%clk 0:00:04]} 55. Qb7+ {[%clk 0:00:20]}  Kg6 {[%clk 0:00:04]} 56. a6 {[%clk 0:00:21]}  Rb3 {[%clk 0:00:03]} 57. Qxb3 {[%clk 0:00:20]} 1-0


[Site "https://www.chess.com"]